Cogmind - Beta 16 @@@ ROGUE MODE // 2025.10.25 @ 18:01:30 Player: StaticNoob Result: Destroyed by Q003-z with Ragnarok Missile Launcher Performance ------------- Evolutions (9) 4500 Regions Visited (18) 3600 Robots Destroyed (359) 1795 Value Destroyed (16698) 16698 Prototype IDs (34) 680 Alien Tech Used (2) 400 Bonus (1417) 1417 TOTAL SCORE: 29090 Bonus ------- High Alert Combat Kills 452 Follower Combat Kills 165 Met Zhirov 300 Scanned by Researcher 500 Cogmind --------- Core Integrity 0/1600 Matter 300/300 Energy 86/100 System Corruption 18% Temperature Cool (0) Movement Core (50) Location -1/Access Parts ------- > --- POWER (3) -------- (None) > --- PROPULSION (6) --- (None) > --- UTILITY (12) ----- Advanced Visual Processing Unit Core Analyzer Graphene Brace > --- WEAPON (4) ------- (None) > --- INVENTORY (5) ---- Graphene Brace Experimental Thermal Shield Compact HERF Cannon Peak State ------------ > --- POWER ------------ Reinforced Fission Core Micro Antimatter Reactor Micro Antimatter Reactor > --- PROPULSION ------- Biometal Heavy Treads Advanced Heavy Siege Treads Advanced Heavy Siege Treads > --- UTILITY ---------- Advanced Cryofiber Web Advanced Heat Sink High-capacity Storage Unit Advanced Visual Processing Unit Advanced Targeting Computer Advanced Target Analyzer Core Analyzer Weapon Cycler Advanced Transmission Jammer Graphene Brace > --- WEAPON ----------- Enhanced Nova Cannon Railgun Guided Micro-nuke Launcher > --- INVENTORY -------- Quantum Reactor Biometal Heavy Treads Advanced Heat Sink Compact Battery Matter Compressor Advanced Target Analyzer Advanced Phase Shifter Graphene Brace Gamma Rifle Gamma Rifle Gamma Rifle Quantum Rifle Quantum Rifle Compact HERF Cannon KE Penetrator Railgun Enhanced Hardcell Cannon [Rating: 173] Favorites ----------- Power Reinforced Fission Core Engine Light Deuterium Engine Power Core Reinforced Fission Core Reactor Micro Antimatter Reactor Propulsion Medium Treads Treads Medium Treads Leg Myomer Leg Wheel Armored Wheel Flight Unit Xenon Bombardment Thruster Utility Advanced Targeting Computer Device Advanced Heat Sink Storage High-capacity Storage Unit Processor Advanced Targeting Computer Hackware System Mapper Protection Hardened Heavy Armor Plating Weapon Improved Assault Rifle Energy Gun Field Laser Energy Cannon Enhanced Nova Cannon Ballistic Gun Improved Assault Rifle Ballistic Cannon Hardcell Cannon Launcher Long-range Missile Launcher Build | -11 -10 -9 -9 -8 -7 -6 -6 -6 -5 -4 -4 -4 -4 -3 -3 -2 -2 -1 ------- Run | Yrd Mat Mat Min Mat Fac Fac Was Fac Fac Fac Upp Upp Zhi Pro Res Res Tes Acc Slots Evolved 18 | . . 2 . 2 2 2 . . 2 2 . . . . 2 2 . 2 Power 2 | . . . . . . 1 . . . . . . . . . 1 . . Propulsion 4 | . . 1 . . . . . . 1 . . . . . 1 1 . . Utility 10 | . . . . 2 2 1 . . 1 2 . . . . . . . 2 Weapon 2 | . . 1 . . . . . . . . . . . . 1 . . . Parts Attached 253 | 8 14 16 7 15 8 6 7 19 7 19 9 6 1 . 34 47 18 12 Power 34 | 1 1 2 1 2 . 3 1 4 1 2 . . . . 4 9 1 2 Engine 10 | 1 1 2 . 2 . 2 . 2 . . . . . . . . . . Core 7 | . . . 1 . . 1 1 2 . 1 . . . . 1 . . . Reactor 17 | . . . . . . . . . 1 1 . . . . 3 9 1 2 Propulsion 63 | 3 5 6 2 5 1 . . 7 1 6 . 1 . . 10 9 5 2 Treads 34 | 1 . 2 1 5 . . . 5 1 4 . 1 . . 6 3 5 . Leg 12 | . 4 . . . . . . . . . . . . . 2 6 . . Wheel 16 | 2 1 4 1 . 1 . . 2 . 2 . . . . 2 . . 1 Hover . | . . . . . . . . . . . . . . . . . . . Flight 1 | . . . . . . . . . . . . . . . . . . 1 Utility 75 | 1 2 3 1 6 7 1 . 4 1 8 4 3 1 . 10 14 3 6 Device 40 | . 1 1 1 1 5 . . 2 1 6 1 2 . . 5 10 2 2 Storage 6 | 1 1 1 . . . . . . . . . . . . . . . 3 Processor 14 | . . . . 3 1 1 . . . 1 1 . . . 3 3 1 . Hackware 1 | . . . . . . . . . . . . . . . . . . 1 Protection 14 | . . 1 . 2 1 . . 2 . 1 2 1 1 . 2 1 . . Artifact . | . . . . . . . . . . . . . . . . . . . Weapon 81 | 3 6 5 3 2 . 2 6 4 4 3 5 2 . . 10 15 9 2 Energy Gun 20 | 1 1 . . . . . . . . . 1 2 . . 6 4 4 1 Energy Cannon 8 | . . . . . . . . . . 2 1 . . . 1 2 1 1 Ballistic Gun 38 | 2 3 5 3 1 . 2 1 4 3 1 2 . . . 3 5 3 . Ballistic Cannon 7 | . . . . . . . 2 . 1 . . . . . . 3 1 . Launcher 8 | . 2 . . 1 . . 3 . . . 1 . . . . 1 . . Special Weapon . | . . . . . . . . . . . . . . . . . . . Impact Weapon . | . . . . . . . . . . . . . . . . . . . Slashing Weapon . | . . . . . . . . . . . . . . . . . . . Piercing Weapon . | . . . . . . . . . . . . . . . . . . . Special Melee Weapon . | . . . . . . . . . . . . . . . . . . . Unidentified Prototypes 9 | . . . . . . . . . . 1 . . 2 . 1 2 1 2 Corrupted Parts 9 | . . . . . . . . . . . 2 . . . 5 2 . . System Corruption 31 | . . . . . . . . . . . 12 . . . 17 2 . . Parts Lost 160 | . 8 1 8 2 . 1 1 17 2 12 12 4 . . 25 33 9 25 Power 22 | . 1 . 2 . . . . 4 . 1 . 1 . . 3 5 1 4 Propulsion 43 | . 4 . 2 2 . . . 4 1 4 . 1 . . 6 9 3 7 Utility 43 | . . . 1 . . . . 2 1 4 7 1 . . 6 10 2 9 Weapon 52 | . 3 1 3 . . 1 1 7 . 3 5 1 . . 10 9 3 5 Highest Loss Streak 24 | . 2 1 8 1 . 1 1 6 1 9 8 3 . . 14 6 4 24 To Critical Strikes 2 | . . . . . . . . 1 . 1 . . . . . . . . Average Backups 16 | 1 10 17 16 18 19 19 20 18 18 16 11 15 18 17 15 16 12 4 Power 1 | . 1 1 . 1 1 . 1 . . 2 2 4 4 4 3 2 1 . Propulsion 1 | 1 . 2 3 3 3 3 2 1 . . 1 3 4 4 1 1 1 . Utility 8 | . 5 8 9 9 9 10 10 12 10 9 6 4 5 5 6 7 4 3 Weapon 4 | . 3 5 3 4 5 4 5 4 6 4 1 2 4 3 2 5 5 . Tool/Special . | . . . . . . . . . . . . . . . . . . . Unused Backups 48 | . . 3 1 5 4 4 2 4 8 2 . . . . 3 9 2 1 Power 8 | . . . . 1 . . . . 2 . . . . . 1 2 2 . Propulsion 8 | . . . . 1 1 1 2 2 . 1 . . . . . . . . Utility 19 | . . 1 1 3 1 1 . 1 3 1 . . . . . 6 . 1 Weapon 13 | . . 2 . . 2 2 . 1 3 . . . . . 2 1 . . Tool/Special . | . . . . . . . . . . . . . . . . . . . Average Slot Usage (%) 91 | . 88 99 86 98 94 92 92 94 99 93 83 80 69 84 82 86 88 86 Engine 4 | . 13 11 4 8 7 6 6 4 5 1 . . . . . . . . Core 3 | . . . . . . 6 6 6 4 3 5 8 10 10 5 3 . . Reactor 2 | . . . . . . . . . . 5 5 1 . . 3 8 12 10 Treads 11 | . 9 9 11 16 9 6 6 8 23 13 10 10 10 10 10 7 15 16 Leg 1 | . 6 2 . . . . . . . . . . . . . 8 . . Wheel 4 | . 5 21 20 10 7 6 6 5 . 2 . . . . 1 . . 1 Device 17 | . 12 11 9 12 22 20 20 18 17 25 21 19 21 21 14 18 19 21 Storage 6 | . 14 11 11 9 7 6 6 6 5 5 5 5 5 5 4 4 2 . Processor 13 | . . . . 6 15 19 20 20 17 15 14 15 15 15 19 17 20 19 Protection 2 | . . . . 7 . . . 1 4 4 5 4 5 5 2 . . . Energy Gun 1 | . 6 . . . . . . . . . 1 1 . . 8 2 1 3 Energy Cannon 1 | . . . . . . . . . . 2 7 . . . 1 3 1 3 Ballistic Gun 15 | . 18 32 29 27 23 20 1 17 16 11 6 11 1 15 6 5 11 3 Peak Build Rating 173 | 6 8 20 19 29 43 54 61 64 75 104 108 102 97 97 130 173 170 172 Average Rating 74 | 4 7 17 15 24 37 51 56 58 72 86 99 94 85 97 104 151 159 150 On Entrance 67 | . 6 8 18 16 27 42 54 58 60 75 104 92 97 97 97 108 169 152 Avg Prop Armor Cover (%) 9 | . 15 8 10 11 9 7 7 8 . 13 . . . . 9 11 . 1 Naked Turns . | . . . . . . . . . . . . . . . . . . . Heaviest Build 143 | 13 30 57 55 60 62 72 100 99 111 108 124 122 122 122 127 143 113 97 Greatest Support 235 | 26 26 34 24 24 28 28 28 86 96 145 145 150 150 150 178 235 235 196 Greatest Overweight (x) 30 | . 9 2 4 4 4 2 3 8 1 6 . . . . 30 6 . 4 Average Overweight (x) 1 | . . 1 1 3 2 2 2 3 . 3 . . . . 1 . . . Largest Inventory Capacity 20 | 8 15 20 20 20 20 20 20 20 20 20 20 20 20 20 20 20 20 10 Average Capacity 18 | 6 13 18 20 20 20 20 20 20 20 20 20 20 20 20 20 20 13 5 Most Carried 20 | 4 15 20 20 20 20 20 20 20 20 20 19 20 20 19 20 20 20 6 Average Carried 16 | 1 10 17 16 18 19 19 19 18 19 18 14 16 19 18 16 17 12 4 Final Capacity 20 | 8 15 20 20 20 20 20 20 20 20 20 20 20 20 20 20 20 5 5 Final Carried 20 | 3 15 20 13 20 20 20 20 20 20 19 14 19 19 19 18 20 4 3 Class Distribution -------------------- 47% | Scavenger-Gunner 20% | Gunner 11% | Scavenger-Tank 10% | Mutant 4% | Scavenger-Mutant Dominant Class ---------------- Mutant | -10/Materials Gunner | -9/Materials Gunner | -9/Mines Scavenger-Tank | -8/Materials Gunner | -7/Factory Gunner | -6/Factory Gunner | -6/Waste Gunner | -6/Factory Scavenger-Gunner | -5/Factory Scavenger-Tank | -4/Factory Scavenger-Gunner | -4/Upper Caves Scavenger-Gunner | -4/Upper Caves Scavenger-Mutant | -4/Zhirov Scavenger-Gunner | -3/Proximity Caves Scavenger-Gunner | -3/Research Scavenger-Gunner | -2/Research Scavenger-Gunner | -2/Testing Scavenger-Gunner | -1/Access Resources | -11 -10 -9 -9 -8 -7 -6 -6 -6 -5 -4 -4 -4 -4 -3 -3 -2 -2 -1 ----------- Run | Yrd Mat Mat Min Mat Fac Fac Was Fac Fac Fac Upp Upp Zhi Pro Res Res Tes Acc Matter Collected 11416 | 270 505 621 345 661 199 332 399 1068 1083 993 358 300 . 458 918 1905 822 179 Remotely 2120 | . . . . . 58 . 399 389 404 583 129 . . . . . 158 . Salvage Created 19617 | 71 716 791 52 957 152 134 1260 1829 1765 1446 1076 475 . 166 2742 3422 1445 1118 Parts 929 | 2 34 57 5 49 9 9 4 110 103 74 33 27 . 6 140 167 59 41 Haulers Intercepted 8 | . 2 2 . 2 . . . 1 . . . . . . 1 . . . Recyclers Shooed 19 | . 2 1 . . . . . 2 2 1 . . . . 6 3 . 2 Parts Field Recycled . | . . . . . . . . . . . . . . . . . . . Retrieved Matter . | . . . . . . . . . . . . . . . . . . . Parts Self-Destructed 47 | . . . . . . . . . . . 26 15 . 6 . . . . Prevented 14 | . . . . . . . . . . . 7 7 . . . . . . Parts Restored . | . . . . . . . . . . . . . . . . . . . Kills | -11 -10 -9 -9 -8 -7 -6 -6 -6 -5 -4 -4 -4 -4 -3 -3 -2 -2 -1 ------- Run | Yrd Mat Mat Min Mat Fac Fac Was Fac Fac Fac Upp Upp Zhi Pro Res Res Tes Acc Combat Hostiles Destroyed 260 | . 18 16 4 19 2 2 6 34 20 16 17 6 . 2 31 42 16 9 Guns 168 | . 13 11 4 15 2 2 . 19 20 15 8 5 . 2 22 21 8 1 Cannons 37 | . . . . . . . . 2 . . 2 . . . 6 17 6 4 AOE 38 | . 5 5 . 4 . . 6 13 . . 3 . . . 1 . . 1 Classes Destroyed 21 | 1 6 4 . . 1 . 1 6 . 1 . . . . . . 1 . Worker 35 | . 2 4 . 1 . . . 6 2 . . . . . 2 13 3 2 Builder 13 | . 1 1 . . . . . 4 . . . . . . 2 2 3 . Tunneler 3 | . . . . . . . . 1 1 . . . . . 1 . . . Hauler 8 | . 2 2 . 2 . . . 1 . . . . . . 1 . . . Recycler 14 | 1 1 . . . . . . 2 1 1 . . . . 3 2 . 3 Mechanic 1 | . . . . . . . . 1 . . . . . . . . . . Operator 1 | . . 1 . . . . . . . . . . . . . . . . Watcher 23 | . 2 3 . 2 1 . . 1 4 . . . . . 3 4 1 2 Swarmer 37 | . 6 6 4 5 . . . 2 . . 4 . . . 5 3 . 2 Grunt 87 | . 12 4 . 9 . . . 8 11 7 4 3 . 2 8 12 7 . Brawler 4 | . . 1 . . . . . 1 . . 1 . . . . 1 . . Duelist 6 | . . 1 . 1 . . . . . . 3 . . . . 1 . . Protector 2 | . . . . . . . . 2 . . . . . . . . . . Researcher 1 | . . . . . . . . . . . . . . . . . 1 . Sentry 21 | . . 4 . 4 1 2 . . 1 1 2 . . . 1 2 3 . Specialist 4 | . . . . . . . . 2 . . . . . . . 2 . . Hunter 40 | . . . . . . . . 13 4 2 1 . . . 6 7 3 4 Programmer 47 | . . . . . 1 . . 5 4 5 2 2 . . 10 12 3 3 Heavy 3 | . . . . . . . . 1 . . . . . . . 2 . . Behemoth 3 | . . . . . . . . . . 1 . 1 . . 1 . . . Compactor 6 | . . . . . . . 6 . . . . . . . . . . . Best Kill Streak 19 | 1 5 4 4 4 2 1 3 19 7 3 7 3 . 2 9 12 12 10 Combat Bots Only 10 | . 4 3 4 4 1 1 3 10 6 3 7 3 . 2 6 5 8 6 Max Kills in Single Turn 7 | 1 3 2 2 2 1 1 2 7 2 2 3 1 . 1 3 3 3 4 Gunslinging 1 | . . . . . . . . . . . . . . . 1 1 . . Exploded 5 | . 2 1 . 2 . . 2 5 . . 3 . . . 1 . . 1 Melee . | . . . . . . . . . . . . . . . . . . . Uniques/NPCs Destroyed . | . . . . . . . . . . . . . . . . . . . Combat | -11 -10 -9 -9 -8 -7 -6 -6 -6 -5 -4 -4 -4 -4 -3 -3 -2 -2 -1 -------- Run | Yrd Mat Mat Min Mat Fac Fac Was Fac Fac Fac Upp Upp Zhi Pro Res Res Tes Acc Hostile Shots Fired 2144 | . 105 59 34 72 62 51 . 169 105 95 120 62 . 12 350 437 133 278 Missed 659 | . 31 15 4 22 17 30 . 42 25 29 34 16 . 1 132 131 37 93 Hits 1485 | . 74 44 30 50 45 21 . 127 80 66 86 46 . 11 218 306 96 185 Melee 19 | . . 2 . 2 . . . . . . 13 . . . . 2 . . Projectile 1466 | . 74 42 30 48 45 21 . 127 80 66 73 46 . 11 218 304 96 185 AOE 23 | . . . 20 . . . . . . . . . . . . . . 3 Critical Strikes 57 | . . . . 4 . . . 6 6 7 3 4 . 1 11 7 5 3 Actively Blocked 26 | . . . . . . . . . . 3 2 . . . 7 6 5 3 Part Disruptions 2 | . . . . . 1 . . . . . . . . . 1 . . . Damage Taken 29706 | . 935 611 895 513 301 82 118 2166 1010 1216 2124 1072 . 220 4511 7633 2135 4164 Core 4479 | . 184 101 85 55 22 15 24 280 120 103 243 122 . . 620 688 200 1617 Absorbed by Shields 1444 | . . . . 199 100 45 . 182 367 222 144 . . . 185 . . . Reduced by Siege Mode 393 | . . . . . . . . . . . . . . 7 . 367 . 19 Ignored by Resistances 32 | . . . . . . . . . . . . . . . 32 . . . Regen/Repaired (Parts) 20 | . . . . 20 . . . . . . . . . . . . . . Core Remaining (%) 65 | 100 26 . 53 90 96 . . 62 88 . . . . 59 52 . 33 . Volleys Fired 826 | 2 91 48 7 54 11 7 8 62 62 60 50 27 . 8 92 156 47 34 Largest 4 | 2 2 3 3 3 3 3 3 3 3 3 3 3 . 3 4 4 4 4 Hottest 343 | 70 85 69 66 69 69 76 135 108 99 161 201 146 . 83 319 321 307 343 Shots Fired 2157 | 4 158 132 21 156 33 21 20 169 182 167 105 63 . 22 246 428 173 57 Gun 1795 | 4 151 126 21 153 33 21 1 150 180 151 56 57 . 22 209 302 135 23 Cannon 318 | . . . . . . . . 11 2 16 48 6 . . 37 126 38 34 Launcher 44 | . 7 6 . 3 . . 19 8 . . 1 . . . . . . . Special . | . . . . . . . . . . . . . . . . . . . Kinetic 1548 | 2 126 126 21 153 33 21 1 161 182 151 42 48 . 22 93 228 126 12 Thermal 390 | 2 25 . . . . . . . . 16 25 2 . . 76 190 31 23 Explosive 44 | . 7 6 . 3 . . 19 8 . . 1 . . . . . . . Electromagnetic 175 | . . . . . . . . . . . 37 13 . . 77 10 16 22 Robot Hit Streak 28 | 3 10 14 6 16 26 27 4 14 14 18 8 26 . 28 15 14 18 10 Robot Miss Streak 7 | . 5 2 3 4 2 3 1 7 4 3 4 2 . 2 3 5 4 3 Penetration Max 3 | . . . . . . . . 1 3 2 1 . . . 1 2 1 . Secondary Targets 30 | . . 2 1 1 . . . 4 3 . . . . . 11 5 2 1 Max Gunslinging Chain 2 | . . 1 1 1 . . . 1 1 . . . . . 2 2 1 1 Shots Hit Robots 1453 | 3 96 84 13 107 27 11 14 126 123 111 77 51 . 16 174 266 118 36 Core Hits 779 | 2 48 39 6 48 8 6 13 135 73 45 35 20 . 6 95 133 48 19 Critical Kills 65 | . . . . 1 . . . 1 28 16 1 . . . 4 8 5 1 Critical Parts Destroyed 78 | . . . . . 1 . . 2 27 20 3 . . 1 2 13 9 . Critical Strikes 174 | . 2 . . 1 1 . . 3 55 46 6 1 . 1 8 30 18 2 Burn 10 | . 2 . . . . . . . . . . . . . 1 7 . . Meltdown 3 | . . . . . . . . . . 1 . . . . . 1 . 1 Destroy 153 | . . . . 1 1 . . 3 55 45 6 . . 1 6 20 15 . Blast 4 | . . . . . . . . . . . . . . . . 2 1 1 Corrupt 4 | . . . . . . . . . . . . 1 . . 1 . 2 . Melee Attacks . | . . . . . . . . . . . . . . . . . . . Impact . | . . . . . . . . . . . . . . . . . . . Slashing . | . . . . . . . . . . . . . . . . . . . Piercing . | . . . . . . . . . . . . . . . . . . . Sneak Attacks . | . . . . . . . . . . . . . . . . . . . Combat Hostiles . | . . . . . . . . . . . . . . . . . . . Follow-up Attacks . | . . . . . . . . . . . . . . . . . . . Damage Inflicted 41203 | 32 1471 1449 180 1914 435 185 3933 5411 960 1151 2609 1014 . 300 5057 9328 3658 2116 Guns 22618 | 32 1003 1139 180 1591 435 185 23 2197 959 904 880 882 . 300 3639 5280 2551 438 Cannons 8706 | . . . . . . . . 178 . 247 1238 132 . . 944 3668 1051 1248 Explosions 9721 | . 466 289 . 323 . . 3910 3036 . . 491 . . . 461 333 . 412 Melee . | . . . . . . . . . . . . . . . . . . . Ramming 158 | . 2 21 . . . . . . 1 . . . . . 13 47 56 18 Kinetic 19471 | 20 727 1139 180 1591 435 185 23 2375 959 904 644 759 . 300 1668 4697 2557 308 Thermal 8954 | 12 276 . . . . . . 1013 . 247 767 18 . . 1184 4109 702 626 Explosive 8489 | . 466 289 . 323 . . 3910 2023 . . 331 . . . 402 333 . 412 Electromagnetic 4131 | . . . . . . . . . . . 867 237 . . 1790 142 343 752 Impact . | . . . . . . . . . . . . . . . . . . . Slashing . | . . . . . . . . . . . . . . . . . . . Piercing . | . . . . . . . . . . . . . . . . . . . Highest Corruption 39 | . . . . . . . . 2 3 . 34 39 39 39 32 17 18 18 Average Corruption 15 | . . . . . . . . 1 2 . 22 38 39 39 13 9 17 12 Corruption Purged . | . . . . . . . . . . . . . . . . . . . Corruption Blocked . | . . . . . . . . . . . . . . . . . . . Effects 234 | . . . . . . . . 6 6 . 25 27 14 22 43 55 28 8 Message Errors 50 | . . . . . . . . . 1 . 7 5 1 2 12 14 7 1 Matter Fused 54 | . . . . . . . . 1 2 . 4 5 8 7 7 17 3 . Heat Flow Errors 25 | . . . . . . . . 1 1 . . 4 2 3 5 6 3 . Energy Discharges 27 | . . . . . . . . 2 . . 3 1 2 2 7 4 4 2 Parts Rejected 4 | . . . . . . . . . . . . 2 . . 1 . . 1 Data Loss (minor) 17 | . . . . . . . . . 1 . 3 . 1 3 3 4 2 . Data Loss (major) 6 | . . . . . . . . 1 1 . 2 . . 1 . . 1 . Misfires 13 | . . . . . . . . . . . 1 3 . 1 4 1 3 . Alerts 4 | . . . . . . . . . . . 1 1 . . 1 . 1 . Misdirections 4 | . . . . . . . . . . . . . . . . 1 . 3 Weapon Failures 30 | . . . . . . . . 1 . . 4 6 . 3 3 8 4 1 Overload Shots . | . . . . . . . . . . . . . . . . . . . Overflow Damage 648 | . 8 26 . 5 . . 18 213 . . 7 . . . 49 162 3 157 Projectiles 170 | . . . . . . . . . . . 4 . . . . 92 2 72 Explosions 464 | . 8 20 . 5 . . 18 213 . . 3 . . . 49 63 . 85 Melee 14 | . . 6 . . . . . . . . . . . . . 7 1 . Knockbacks 22 | . . . . . . . . 1 . . . . . . . 18 2 1 Impact . | . . . . . . . . . . . . . . . . . . . Kinetic 22 | . . . . . . . . 1 . . . . . . . 18 2 1 Secondary . | . . . . . . . . . . . . . . . . . . . Self-Inflicted Damage 726 | . 64 31 . . . . 119 84 . . 71 . . . 356 . . 1 Shots 16 | . 4 1 . . . . 2 2 . . 1 . . . 6 . . . Rammed 12 | . 2 1 . . . . . . 1 . . . . . 1 1 3 3 Targets Rammed 13 | . 2 1 . . . . . . 1 . . . . . 1 1 4 3 Kicked . | . . . . . . . . . . . . . . . . . . . Crushed 1 | . . . . . . . . . . . . . . . . . 1 . Highest Temperature 537 | 40 237 37 3 54 9 12 195 300 241 177 197 300 191 147 448 537 469 440 Average Temperature 84 | 23 51 14 2 13 5 6 74 99 104 35 107 95 81 66 74 172 123 134 Received Heat Transfer 2894 | . 393 153 . 232 68 12 . 283 168 230 214 187 . 57 339 360 198 . Effects 19 | . . . . . . . . 2 1 . . . . . 2 8 5 1 Shutdowns 6 | . . . . . . . . . . . . . . . 1 3 2 . Interference 10 | . . . . . . . . 2 1 . . . . . . 3 3 1 Matter Decay 2 | . . . . . . . . . . . . . . . . 2 . . Damage (minor) 1 | . . . . . . . . . . . . . . . 1 . . . Siege Activations 5 | . . . . . . . . . . . . . . 1 . 2 1 1 Total Turns 70 | . . . . . . . . . . . . . . 14 . 40 11 5 Longest Duration 29 | . . . . . . . . . . . . . . 14 . 29 11 5 Martial Activations . | . . . . . . . . . . . . . . . . . . . Shielding Activations . | . . . . . . . . . . . . . . . . . . . Robots Disrupted . | . . . . . . . . . . . . . . . . . . . Combat Hostiles . | . . . . . . . . . . . . . . . . . . . Robots Corrupted 16 | . . 1 . . . . . . . . 4 1 . . 2 2 2 4 Combat Hostiles 13 | . . . . . . . . . . . 4 1 . . 2 1 2 3 Parts Fried 39 | . . . . . . . . . . . 9 1 . . 14 2 3 10 Impact Corruptions 3 | . . 1 . . . . . . . . . . . . . 1 1 . Robots Melted 5 | . . . . . . . . . . 1 . . . . . 3 . 1 Combat Hostiles 4 | . . . . . . . . . . 1 . . . . . 3 . . Parts Melted 20 | . 1 . . . . . . . . 4 1 . . . 6 4 . 4 Heat Transferred 11681 | 37 814 . . . . . . 675 . 298 779 37 . . 1937 5809 703 592 Parts Sabotaged . | . . . . . . . . . . . . . . . . . . . Parts Stolen . | . . . . . . . . . . . . . . . . . . . Parts Stripped . | . . . . . . . . . . . . . . . . . . . Power Chain Reactions 4 | . . . . . . . . . . . 1 . . . 3 . . . Alert | -11 -10 -9 -9 -8 -7 -6 -6 -6 -5 -4 -4 -4 -4 -3 -3 -2 -2 -1 ------- Run | Yrd Mat Mat Min Mat Fac Fac Was Fac Fac Fac Upp Upp Zhi Pro Res Res Tes Acc Maximum Alert Level 2 | . 1 . . 1 . . . 2 2 1 . . . . 1 2 2 1 Low Security (%) 71 | 100 99 100 100 92 100 100 100 81 34 82 . . . . 44 58 . 15 Level 1 23 | . . . . 7 . . . . 63 17 . . . . 55 24 73 84 Level 2 4 | . . . . . . . . 17 1 . . . . . . 16 26 . Level 3 . | . . . . . . . . . . . . . . . . . . . Level 4 . | . . . . . . . . . . . . . . . . . . . Level 5 . | . . . . . . . . . . . . . . . . . . . High Security . | . . . . . . . . . . . . . . . . . . . Max Security . | . . . . . . . . . . . . . . . . . . . Peak Influence 599 | 5 203 180 126 227 30 30 45 599 406 226 . . . . 353 599 525 382 Initial 330 | . . 59 36 . . . . . 287 196 . . . . 13 175 330 293 Average 142 | . 66 105 39 59 3 4 9 172 223 124 . . . . 194 244 342 237 Influence Increases 8292 | 5 565 563 90 618 138 75 100 1190 649 437 471 150 . 50 1044 1316 512 319 Destroy 0b10 Robot/C 5160 | . 360 320 80 420 40 40 . 640 400 320 400 120 . 40 620 840 340 180 Destroy 0b10 Robot/NC 500 | 5 40 55 . 25 5 . . 90 40 5 . . . . 60 105 35 35 Destroy Leader 1142 | . 78 90 10 108 22 20 . 164 88 60 40 30 . 10 128 218 32 44 Allied During Kill 38 | . . . . 7 . . . . . . 31 . . . . . . . Successful Hack 158 | . 22 34 . 16 71 15 . . . . . . . . . . . . Disable Machine 495 | . . . . 15 . . . 210 15 30 . . . . 120 45 30 30 Destroy Structure 589 | . 20 49 . 12 . . 100 71 16 22 . . . . 116 108 45 30 Partial Spotted 15 | . . . . . . . . . 15 . . . . . . . . . Lose Combat Pursuer 195 | . 45 15 . 15 . . . 15 75 . . . . . . . 30 . Influence Decreases 8144 | 5 422 613 183 618 138 75 100 603 834 824 373 263 . 30 752 1041 609 661 Entered New Map 1274 | . . 84 57 . . . . . 300 206 6 23 . . 7 137 257 197 Time Decay 4915 | 5 342 369 60 428 116 75 90 433 514 498 227 180 . 30 498 574 262 214 Lost Part 1573 | . 80 10 66 20 . . 10 170 20 120 120 40 . . 247 330 90 250 Lost Ally 60 | . . . . 20 . . . . . . 20 20 . . . . . . Purge Threat 322 | . . 150 . 150 22 . . . . . . . . . . . . . Squads Dispatched 56 | . 3 . . 3 4 2 . 9 2 5 . . . . 6 15 3 4 Investigation 7 | . 1 . . 2 1 . . 2 . . . . . . . . . 1 Extermination 22 | . . . . . 2 1 . 3 2 3 . . . . 3 5 1 2 Reinforcement 19 | . 2 . . 1 1 . . 1 . 2 . . . . 3 6 2 1 Assault 1 | . . . . . . . . . . . . . . . . 1 . . Garrison 7 | . . . . . . 1 . 3 . . . . . . . 3 . . Intercept . | . . . . . . . . . . . . . . . . . . . Searches Triggered . | . . . . . . . . . . . . . . . . . . . Construction Impeded 1 | . . . . . . . . . . . . . . . . 1 . . Haulers Reinforced 4 | . . . . . . . . 1 . 2 . . . . 1 . . . Active Scanning Responses . | . . . . . . . . . . . . . . . . . . . Cargo Convoy Interrupts 1 | . . . . . . . . 1 . . . . . . . . . . Stealth | -11 -10 -9 -9 -8 -7 -6 -6 -6 -5 -4 -4 -4 -4 -3 -3 -2 -2 -1 --------- Run | Yrd Mat Mat Min Mat Fac Fac Was Fac Fac Fac Upp Upp Zhi Pro Res Res Tes Acc Distress Signals 17 | . 5 . . 3 . 1 . 2 . . . . . . 2 2 1 1 Communications Jammed 78 | . . . . . . . . 15 21 2 . . . . . 14 19 7 Distress Signals 72 | . . . . . . . . 13 21 2 . . . . . 10 19 7 Times Spotted 372 | . 28 24 6 27 5 2 6 38 27 14 19 6 . 3 46 64 25 32 Peak Tracking Total 19 | . 5 4 4 4 1 1 4 9 5 3 7 3 . 3 6 7 3 19 Tactical Retreats 11 | . 3 1 . 1 . . . 1 3 . . . . . . . 2 . Traps | -11 -10 -9 -9 -8 -7 -6 -6 -6 -5 -4 -4 -4 -4 -3 -3 -2 -2 -1 ------- Run | Yrd Mat Mat Min Mat Fac Fac Was Fac Fac Fac Upp Upp Zhi Pro Res Res Tes Acc Traps Triggered 12 | . 2 3 . 1 . 1 . 1 . . . . . . 1 3 . . Indirectly . | . . . . . . . . . . . . . . . . . . . Trap Hack Attempts . | . . . . . . . . . . . . . . . . . . . Triggered . | . . . . . . . . . . . . . . . . . . . Disarmed . | . . . . . . . . . . . . . . . . . . . Reprogrammed . | . . . . . . . . . . . . . . . . . . . Reused . | . . . . . . . . . . . . . . . . . . . Traps Extracted . | . . . . . . . . . . . . . . . . . . . Installed . | . . . . . . . . . . . . . . . . . . . Triggered . | . . . . . . . . . . . . . . . . . . . Machines | -11 -10 -9 -9 -8 -7 -6 -6 -6 -5 -4 -4 -4 -4 -3 -3 -2 -2 -1 ---------- Run | Yrd Mat Mat Min Mat Fac Fac Was Fac Fac Fac Upp Upp Zhi Pro Res Res Tes Acc Machines Disabled 33 | . . . . 1 . . . 14 1 2 . . . . 8 3 2 2 Max in Single Turn 14 | . . . . 1 . . . 14 1 1 . . . . 2 1 1 2 Machines Repaired . | . . . . . . . . . . . . . . . . . . . Machines Dismantled . | . . . . . . . . . . . . . . . . . . . Machines Sabotaged . | . . . . . . . . . . . . . . . . . . . Overloaded Fab Kills . | . . . . . . . . . . . . . . . . . . . Hacking | -11 -10 -9 -9 -8 -7 -6 -6 -6 -5 -4 -4 -4 -4 -3 -3 -2 -2 -1 --------- Run | Yrd Mat Mat Min Mat Fac Fac Was Fac Fac Fac Upp Upp Zhi Pro Res Res Tes Acc Machines Accessed 71 | . 7 9 . 12 9 4 . 5 6 2 . . 5 . 5 5 1 1 Terminals 39 | . 5 8 . 9 6 2 . 2 2 . . . . . 2 2 . 1 Fabricators 7 | . . . . . 2 1 . . 1 1 . . . . 1 1 . . Repair Stations 2 | . 1 . . 1 . . . . . . . . . . . . . . Recycling Units 8 | . 1 . . 1 1 1 . 1 2 1 . . . . . . . . Scanalyzers 8 | . . 1 . 1 . . . 1 . . . . . . 2 2 1 . Garrison Access 2 | . . . . . . . . 1 1 . . . . . . . . . Total Hacks 200 | . 23 34 . 45 25 12 . 11 9 5 . . 18 . 7 7 2 2 Successful 96 | . 9 19 . 26 13 6 . . 1 2 . . 18 . . 2 . . Failed 102 | . 14 14 . 18 12 6 . 11 8 3 . . . . 7 5 2 2 Catastrophic 17 | . 1 1 . . 3 . . 5 2 . . . . . 2 1 1 1 Database Lockouts 2 | . . 1 . 1 . . . . . . . . . . . . . . Manual 92 | . 13 18 . 19 18 10 . 1 2 1 . . . . 4 4 . 2 Terminals 123 | . 20 31 . 31 17 8 . 5 2 . . . . . 4 3 . 2 Fabricators 16 | . . . . . 6 3 . . 2 3 . . . . 1 1 . . Repair Stations 4 | . 1 . . 3 . . . . . . . . . . . . . . Recycling Units 15 | . 2 . . 2 2 1 . 2 4 2 . . . . . . . . Scanalyzers 20 | . . 3 . 9 . . . 1 . . . . . . 2 3 2 . Garrison Access 4 | . . . . . . . . 3 1 . . . . . . . . . Terminal Hacks 41 | . 2 11 . 7 3 . . . . . . . 18 . . . . . Record 7 | . . 1 . . . . . . . . . . 6 . . . . . Part Schematic 4 | . . . . . . . . . . . . . 4 . . . . . Robot Analysis 4 | . . . . . . . . . . . . . 4 . . . . . Prototype ID Bank 13 | . 1 2 . 5 1 . . . . . . . 4 . . . . . Branch Access Points 3 | . 1 2 . . . . . . . . . . . . . . . . Emergency Access Points 1 | . . 1 . . . . . . . . . . . . . . . . Alert Level 1 | . . 1 . . . . . . . . . . . . . . . . Unreport Threat 3 | . . 1 . 1 1 . . . . . . . . . . . . . Dispatch Records 1 | . . 1 . . . . . . . . . . . . . . . . Surveillance Status 1 | . . 1 . . . . . . . . . . . . . . . . Hauler Manifests 2 | . . 1 . 1 . . . . . . . . . . . . . . Zone Layout 1 | . . . . . 1 . . . . . . . . . . . . . Fabricator Hacks 4 | . . . . . 1 1 . . 1 1 . . . . . . . . Network Status 4 | . . . . . 1 1 . . 1 1 . . . . . . . . Repair Station Hacks 3 | . 1 . . 2 . . . . . . . . . . . . . . Scan Component 2 | . 1 . . 1 . . . . . . . . . . . . . . Repair 1 | . . . . 1 . . . . . . . . . . . . . . Recycling Unit Hacks 4 | . 1 . . 1 . 1 . . . 1 . . . . . . . . Report Inventory 1 | . 1 . . . . . . . . . . . . . . . . . Retrieve Components 3 | . . . . 1 . 1 . . . 1 . . . . . . . . Scanalyzer 12 | . . 2 . 8 . . . . . . . . . . . 2 . . Insert Component 1 | . . 1 . . . . . . . . . . . . . . . . Analyze 1 | . . 1 . . . . . . . . . . . . . . . . Retrieve Study 10 | . . . . 8 . . . . . . . . . . . 2 . . Garrison Access Hacks . | . . . . . . . . . . . . . . . . . . . Unauthorized Hacks 32 | . 5 6 . 8 9 4 . . . . . . . . . . . . Terminals 27 | . 5 6 . 8 6 2 . . . . . . . . . . . . Botnet 8 | . 2 1 . 2 2 1 . . . . . . . . . . . . Skim 19 | . 3 5 . 6 4 1 . . . . . . . . . . . . Fabricators 5 | . . . . . 3 2 . . . . . . . . . . . . Liberate 2 | . . . . . 1 1 . . . . . . . . . . . . Fabnet 3 | . . . . . 2 1 . . . . . . . . . . . . Repair Stations . | . . . . . . . . . . . . . . . . . . . Recycling Units . | . . . . . . . . . . . . . . . . . . . Scanalyzers . | . . . . . . . . . . . . . . . . . . . Garrison Access . | . . . . . . . . . . . . . . . . . . . Data Cores Recovered . | . . . . . . . . . . . . . . . . . . . Used . | . . . . . . . . . . . . . . . . . . . Hacking Detections 63 | . 7 9 . 11 9 2 . 5 6 2 . . . . 5 5 1 1 Full Trace Events 5 | . . . . 1 1 . . 2 . . . . . . . . . 1 Feedback Events . | . . . . . . . . . . . . . . . . . . . Feedback Blocked . | . . . . . . . . . . . . . . . . . . . Robot Schematics Acquired 1 | . . . . . . . . . . . . . . . . . 1 . Robots Built . | . . . . . . . . . . . . . . . . . . . Authchips . | . . . . . . . . . . . . . . . . . . . Time . | . . . . . . . . . . . . . . . . . . . Total Robot Build Rating . | . . . . . . . . . . . . . . . . . . . Part Schematics Acquired 8 | . . 1 . . . . . . . . . . 4 . . . 3 . Parts Built . | . . . . . . . . . . . . . . . . . . . Authchips . | . . . . . . . . . . . . . . . . . . . Time . | . . . . . . . . . . . . . . . . . . . Total Part Build Rating . | . . . . . . . . . . . . . . . . . . . Part Studies Acquired 10 | . . . . 8 . . . . . . . . . . . 2 . . Parts Repaired 1 | . . . . 1 . . . . . . . . . . . . . . Time 32 | . . . . 32 . . . . . . . . . . . . . . Parts Recycled . | . . . . . . . . . . . . . . . . . . . Recycled Matter . | . . . . . . . . . . . . . . . . . . . Retrieved Matter . | . . . . . . . . . . . . . . . . . . . Retrieved Components 23 | . . . . 5 . 9 . . . 9 . . . . . . . . Parts Scanalyzed 1 | . . 1 . . . . . . . . . . . . . . . . Part Schematics Acquired 1 | . . 1 . . . . . . . . . . . . . . . . Parts Damaged . | . . . . . . . . . . . . . . . . . . . Bothacking | -11 -10 -9 -9 -8 -7 -6 -6 -6 -5 -4 -4 -4 -4 -3 -3 -2 -2 -1 ------------ Run | Yrd Mat Mat Min Mat Fac Fac Was Fac Fac Fac Upp Upp Zhi Pro Res Res Tes Acc Used RIF Installer . | . . . . . . . . . . . . . . . . . . . Robots Hacked 2 | . . . . . . . . . . 1 1 . . . . . . . Non-combat . | . . . . . . . . . . . . . . . . . . . Combat 2 | . . . . . . . . . . 1 1 . . . . . . . Robot Hacks Applied . | . . . . . . . . . . . . . . . . . . . Relay Couplers Released . | . . . . . . . . . . . . . . . . . . . Fabnet Peak Effective % 6 | . . . . . . 6 6 6 5 1 1 1 1 . . . . . Autooverrided 2 | . . . . . . . . . . 1 1 . . . . . . . Robots Rewired 2 | . . . . . . . . . . . 2 . . . . . . . Allies Hacked 2 | . . . . . . . . . . . 1 1 . . . . . . Hacks Repelled . | . . . . . . . . . . . . . . . . . . . Allies | -11 -10 -9 -9 -8 -7 -6 -6 -6 -5 -4 -4 -4 -4 -3 -3 -2 -2 -1 -------- Run | Yrd Mat Mat Min Mat Fac Fac Was Fac Fac Fac Upp Upp Zhi Pro Res Res Tes Acc Total Allies 5 | . . . 1 . . . . . . 1 3 . . . . . . . Largest Group 2 | . . . 1 1 . . . . . 1 2 1 . . . . . . Highest-Rated Group 79 | . . . 31 31 . . . . . 54 79 30 . . . . . . Highest-Rated Ally 54 | . . . 31 31 . . . . . 54 49 30 . . . . . . Total Orders . | . . . . . . . . . . . . . . . . . . . Ally Attacks 36 | . . . . 20 . . . . . 4 12 . . . . . . . Total Damage 905 | . . . . 230 . . . . . 208 467 . . . . . . . Kills 6 | . . . . 2 . . . . . 1 3 . . . . . . . Allies Corrupted . | . . . . . . . . . . . . . . . . . . . Allies Melted . | . . . . . . . . . . . . . . . . . . . Intel | -11 -10 -9 -9 -8 -7 -6 -6 -6 -5 -4 -4 -4 -4 -3 -3 -2 -2 -1 ------- Run | Yrd Mat Mat Min Mat Fac Fac Was Fac Fac Fac Upp Upp Zhi Pro Res Res Tes Acc Active Infowar (turns) 11332 | . 1128 887 254 610 943 441 466 1240 1403 1334 157 . . . 95 1341 574 459 Optics 8056 | . . . . . 943 441 466 1215 1403 1334 149 . . . . 1072 574 459 Terrain 437 | . . . . . 126 . . . . 311 . . . . . . . . Seismic 5225 | . 1128 887 254 610 930 441 466 509 . . . . . . . . . . Triangulation 98 | . . . . . . . . . . . . . . . . 98 . . Jamming 8087 | . . . . . 802 441 466 1240 1403 1334 157 . . . . 1243 574 427 ECM 95 | . . . . . . . . . . . . . . . 95 . . . Robot Analysis Total 4 | . . . . . . . . . . . . . 4 . . . . . Derelict Logs Recovered 2 | . . . 1 . . . . . . . . 1 . . . . . . Drone Launches . | . . . . . . . . . . . . . . . . . . . Drone Recoveries . | . . . . . . . . . . . . . . . . . . . Exploration | -11 -10 -9 -9 -8 -7 -6 -6 -6 -5 -4 -4 -4 -4 -3 -3 -2 -2 -1 ------------- Run | Yrd Mat Mat Min Mat Fac Fac Was Fac Fac Fac Upp Upp Zhi Pro Res Res Tes Acc Turns Passed 15446 | 61 1246 890 288 1413 943 441 466 1240 1403 1334 594 409 244 369 1331 1741 574 459 Spaces Moved 7643 | 41 580 503 222 778 629 312 311 587 451 558 267 196 144 211 535 814 237 267 Core 69 | 2 3 . . . . . . . . . . . . . 8 . . 56 Treads 2965 | 5 172 26 . . . . . 9 451 277 267 196 144 211 377 401 237 192 Legs 519 | . 132 31 . . . . . . . . . . . . . 356 . . Wheels 4084 | 34 273 446 222 778 629 312 311 578 . 281 . . . . 150 57 . 13 Hover . | . . . . . . . . . . . . . . . . . . . Flight 6 | . . . . . . . . . . . . . . . . . . 6 Fastest Speed 40 | 50 90 86 105 120 130 130 130 130 165 145 160 160 160 160 130 108 145 40 Average Speed 155 | 96 167 129 114 142 133 130 136 158 244 198 160 160 160 160 177 139 150 126 Slowest Speed 1550 | 160 500 320 150 150 140 130 145 243 245 480 160 160 160 160 1550 190 155 170 Overloaded Moves . | . . . . . . . . . . . . . . . . . . . Propulsion Burnouts . | . . . . . . . . . . . . . . . . . . . Robots Hopped . | . . . . . . . . . . . . . . . . . . . Potential Cave-ins . | . . . . . . . . . . . . . . . . . . . Cave-ins Triggered . | . . . . . . . . . . . . . . . . . . . Teleports 1 | . . . . . . . . . . . . . . . . 1 . . Exploration Rate (%) 37 | 3 95 46 32 79 18 13 89 23 18 17 54 35 60 43 18 25 31 13 Regions Visited 18 Branch Regions 6 Pre-discovered Areas 4 | . . 1 . . . . . . . . . . 3 . . . . . Known Exits Taken 4 | . . 1 1 1 1 . . . . . . . . . . . . . Unknown Exits Taken 12 | 1 1 . . . . . . 1 1 1 1 1 1 1 1 1 1 . Scrap Searched 3 | . . . 1 . . . . . . . 1 1 . . . . . . Spaces Dug 18 | . . . . . . . . 3 2 4 . . . . . 9 . . Terrain Destroyed 576 | . 41 68 . 12 . . 181 90 8 7 33 4 . 1 62 43 16 10 Melee . | . . . . . . . . . . . . . . . . . . . Projectile 85 | . . . . . . . . 5 2 5 8 4 . . 2 40 16 3 AOE 478 | . 41 68 . 12 . . 181 85 . . 24 . . . 60 . . 7 Terrain Rammed . | . . . . . . . . . . . . . . . . . . . Walls Destroyed . | . . . . . . . . . . . . . . . . . . . Machines Disabled . | . . . . . . . . . . . . . . . . . . . Actions | -11 -10 -9 -9 -8 -7 -6 -6 -6 -5 -4 -4 -4 -4 -3 -3 -2 -2 -1 --------- Run | Yrd Mat Mat Min Mat Fac Fac Was Fac Fac Fac Upp Upp Zhi Pro Res Res Tes Acc Total 9696 | 55 709 654 241 971 714 341 334 767 616 686 359 248 158 230 756 1144 362 351 Wait 492 | . 3 37 4 94 41 . . 64 60 17 . 6 . 10 48 41 44 23 Move 7626 | 40 579 502 221 777 628 312 310 586 450 557 266 195 143 210 534 813 236 267 Hop . | . . . . . . . . . . . . . . . . . . . Pick Up 198 | 2 16 17 1 16 10 8 2 18 12 11 8 7 1 1 21 37 7 3 Fast Attach 95 | 7 7 10 . 2 1 . 2 4 . 7 2 4 6 . 11 20 6 6 Attach 146 | 1 4 6 7 4 2 3 1 15 4 13 11 4 1 . 24 32 9 5 Detach 20 | 1 . 2 . . . . 1 . . . 1 . 1 . 5 8 . 1 Swap 126 | 1 4 12 . 13 8 3 6 12 15 9 3 4 . . 15 12 5 4 Drop 137 | 1 3 19 1 11 13 8 4 6 12 12 1 1 6 1 5 24 4 5 Fire 826 | 2 91 48 7 54 11 7 8 62 62 60 50 27 . 8 92 156 47 34 Melee . | . . . . . . . . . . . . . . . . . . . Ram 2 | . . 1 . . . . . . . . . . . . . . . 1 Kick . | . . . . . . . . . . . . . . . . . . . Crush 11 | . 2 . . . . . . . 1 . . . . . 1 1 4 2 Escape Stasis . | . . . . . . . . . . . . . . . . . . . Rewire 17 | . . . . . . . . . . . 17 . . . . . . . Trap . | . . . . . . . . . . . . . . . . . . . Miscellaneous . | . . . . . . . . . . . . . . . . . . . Route ------- -11/Scrapyard -10/Materials (discovered 4 exits: *Mat x3 / *Min) -9/Materials (discovered 3 exits: *Mat / *Min / Sto) -9/Mines (discovered 3 exits: *Mat x2 / [*Exi]) -8/Materials (discovered 3 exits: *Fac x3) -7/Factory (discovered 4 exits: *Fac x2 / Low x2) -6/Factory -6/Waste -6/Factory -5/Factory -4/Factory -4/Upper Caves -4/Upper Caves -4/Zhirov -3/Proximity Caves -3/Research -2/Research -2/Testing -1/Access History --------- Turn | Location | Event 42 | -11/Scrapyard | Discovered new exit (range 15) 62 | -11/Scrapyard | Entered Materials 238 | -10/Materials | Core integrity fell below 50% 314 | -10/Materials | Discovered new exit (range 7) 324 | -10/Materials | Build established: Mutant 400 | -10/Materials | Discovered new exit (range 3) 687 | -10/Materials | Discovered new exit (range 13) 872 | -10/Materials | Discovered new exit (range 15) 1230 | -10/Materials | Identified exit to Mines 1308 | -10/Materials | Entered another Materials area 1308 | -9/Materials | Evolved 2 slots: Propulsion x1, Weapon x1 1475 | -9/Materials | Identified exit to Mines 1475 | -9/Materials | Identified exit to Storage 1499 | -9/Materials | Central database locked down 1731 | -9/Materials | Discovered new exit (range 16) 1793 | -9/Materials | Build established: Gunner 1950 | -9/Materials | Learned 4 Recycling zone layouts 1985 | -9/Materials | Learned Storage trap positions 2010 | -9/Materials | Loaded intel: 12 terminal locations 2034 | -9/Materials | Loaded intel: 25 trap records 2048 | -9/Materials | Learned Materials terminal intel 2198 | -9/Materials | Entered Mines 2229 | -9/Mines | Met a Derelict bent on vengeance 2242 | -9/Mines | Identified exit to Materials 2242 | -9/Mines | Discovered exit to Materials (range 10) 2285 | -9/Mines | Assembled infested the area 2323 | -9/Mines | Discovered new exit (range 11) 2359 | -9/Mines | Lost 8 parts (2p2n1u3w) 2446 | -9/Mines | Received a Mining Laser from a helpful Derelict 2486 | -9/Mines | Entered Materials 2486 | -8/Materials | Accompanied by 1 ally 2486 | -8/Materials | Evolved 2 slots: Utility x2 2487 | -8/Materials | Loaded intel: 12 terminal locations 2815 | -8/Materials | Discovered new exit (range 6) 2844 | -8/Materials | Identified exit to Factory 2885 | -8/Materials | Build established: Scavenger-Tank 3337 | -8/Materials | Discovered exit to Factory (range 16) 3380 | -8/Materials | Central database locked down 3551 | -8/Materials | Learned Factory repair station intel 3603 | -8/Materials | Learned 4 Factory zone layouts 3643 | -8/Materials | Learned location of 3 exits from Factory 3713 | -8/Materials | Repaired Shield Generator 3756 | -8/Materials | Learned Storage emergency access door positions 3787 | -8/Materials | Met 7R-MNS 3899 | -8/Materials | Entered Factory 3899 | -7/Factory | Evolved 2 slots: Utility x2 3900 | -7/Factory | Caught up to 7R-MNS 3900 | -7/Factory | Identified exit to Factory 3900 | -7/Factory | Identified exit to Lower Caves 3902 | -7/Factory | Loaded intel: 6 repair station locations 4507 | -7/Factory | Build established: Gunner 4516 | -7/Factory | Discovered exit to Factory (range 8) 4842 | -7/Factory | Entered another Factory area 4842 | -6/Factory | Evolved 2 slots: Power x1, Utility x1 4843 | -6/Factory | Caught up to 7R-MNS 4843 | -6/Factory | Identified exit to Extension 5199 | -6/Factory | Garrison activated, responded to threat 5283 | -6/Factory | Sucked down chute 5283 | -6/Factory | Entered Waste 5308 | -6/Waste | Spotted C-40 Crusher 5318 | -6/Waste | Spotted C-40 Crusher 5318 | -6/Waste | Spotted C-40 Crusher 5339 | -6/Waste | Destroyed C-40 Crusher 5339 | -6/Waste | Destroyed C-40 Crusher 5339 | -6/Waste | Spotted C-40 Crusher 5342 | -6/Waste | Spotted C-40 Crusher 5342 | -6/Waste | Spotted C-40 Crusher 5347 | -6/Waste | Destroyed C-40 Crusher 5391 | -6/Waste | Destroyed C-40 Crusher 5393 | -6/Waste | Destroyed C-40 Crusher 5434 | -6/Waste | Destroyed C-40 Crusher 5576 | -6/Waste | Discovered new exit (range 18) 5749 | -6/Waste | Entered Factory 6275 | -6/Factory | Garrison activated, responded to threat 6323 | -6/Factory | Lost 6 parts (2p1n1u2w) 6758 | -6/Factory | Cargo convoy interrupted 6801 | -6/Factory | Lost 4 parts (1n1u2w) 6802 | -6/Factory | Destroyed 10 combat bots 6840 | -6/Factory | Lost 3 parts (1p1n1w) 6854 | -6/Factory | Build established: Scavenger-Gunner 6886 | -6/Factory | Discovered new exit (range 17) 6989 | -6/Factory | Entered another Factory area 6989 | -5/Factory | Evolved 2 slots: Propulsion x1, Utility x1 8057 | -5/Factory | Discovered new exit (range 17) 8392 | -5/Factory | Entered another Factory area 8392 | -4/Factory | Evolved 2 slots: Utility x2 8701 | -4/Factory | Found Prototype Processor 8701 | -4/Factory | Identified Exp. Terrain Scan Processor 8709 | -4/Factory | Found Exp. Terrain Scan Processor 8732 | -4/Factory | Spotted B-86 Titan 8927 | -4/Factory | Destroyed B-86 Titan 8952 | -4/Factory | Lost 9 parts (1p2n3u3w) 9162 | -4/Factory | Build established: Scavenger-Tank 9216 | -4/Factory | Local machine network offline 9681 | -4/Factory | Discovered new exit (range 7) 9726 | -4/Factory | Entered Upper Caves 9863 | -4/Upper Caves | Attracted the attention of an 0b10 outpost 9884 | -4/Upper Caves | System corruption reached 10% 9932 | -4/Upper Caves | Destroyed 7 combat bots 9937 | -4/Upper Caves | Lost 8 parts (5u3w) 10169 | -4/Upper Caves | Build established: Scavenger-Gunner 10190 | -4/Upper Caves | Attracted the attention of an 0b10 checkpoint 10265 | -4/Upper Caves | System corruption reached 30% 10273 | -4/Upper Caves | Lost 4 parts (2u2w) 10290 | -4/Upper Caves | Discovered new exit (range 9) 10320 | -4/Upper Caves | Entered another Upper Caves area 10320 | -4/Upper Caves | Accompanied by 1 ally 10535 | -4/Upper Caves | Spotted B-86 Titan 10560 | -4/Upper Caves | Destroyed B-86 Titan 10589 | -4/Upper Caves | Lost 3 parts (1n1u1w) 10592 | -4/Upper Caves | Found Hvy. Reflective Plating 10683 | -4/Upper Caves | Discovered new exit (range 16) 10718 | -4/Upper Caves | Learned Research terminal intel 10729 | -4/Upper Caves | Entered Zhirov 10731 | -4/Zhirov | Discovered new exit (range 3) 10760 | -4/Zhirov | Met Zhirov 10790 | -4/Zhirov | Learned location of Quarantine (-3) 10790 | -4/Zhirov | Learned location of Testing (-2) 10790 | -4/Zhirov | Learned location of Command (-1) 10809 | -4/Zhirov | Zhirov requested help retrieving the SGEMP Prototype 10834 | -4/Zhirov | Found Alien Artifact 10853 | -4/Zhirov | Found Alien Artifact 10853 | -4/Zhirov | Identified Integrated Dissipator 10853 | -4/Zhirov | Installed Integrated Dissipator, increased core heat dissipation (+20) 10973 | -4/Zhirov | Entered Proximity Caves 11332 | -3/Proximity Caves | Discovered new exit (range 7) 11342 | -3/Proximity Caves | Entered Research 11342 | -3/Research | Evolved 2 slots: Propulsion x1, Weapon x1 11343 | -3/Research | Loaded intel: 23 terminal locations 11795 | -3/Research | Lost 4 parts (1p2u1w) 12041 | -3/Research | System corruption reached 10% 12177 | -3/Research | Spotted B-86 Titan 12213 | -3/Research | Destroyed B-86 Titan 12284 | -3/Research | Lost 14 parts (2p4n2u6w) 12616 | -3/Research | System corruption reached 30% 12648 | -3/Research | Discovered new exit (range 16) 12673 | -3/Research | Entered another Research area 12673 | -2/Research | Evolved 2 slots: Power x1, Propulsion x1 12798 | -2/Research | Lost 3 parts (1p1n1w) 12864 | -2/Research | Lost 4 parts (2u2w) 12918 | -2/Research | Lost 5 parts (3n1u1w) 13030 | -2/Research | Garrison activated, responded to threat 13099 | -2/Research | Lost 3 parts (1p2w) 13163 | -2/Research | Lost 4 parts (1n2u1w) 13249 | -2/Research | Found Prototype Launcher 13488 | -2/Research | Identified Transdimensional Reconstructor 13488 | -2/Research | Warped through subspace 13518 | -2/Research | Lost 6 parts (1p3n1u1w) 13579 | -2/Research | System corruption reached 10% 14046 | -2/Research | Identified Gui. Micro-nuke Launcher 14173 | -2/Research | First assault squad dispatched 14261 | -2/Research | Core integrity fell below 50% 14282 | -2/Research | Lost 3 parts (2u1w) 14402 | -2/Research | Discovered new exit (range 8) 14414 | -2/Research | Entered Testing 14585 | -2/Testing | Lost 4 parts (1p1n1u1w) 14663 | -2/Testing | Scanned by Researcher 14881 | -2/Testing | Destroyed 8 combat bots 14899 | -2/Testing | Found Prototype Hackware 14937 | -2/Testing | Discovered new exit (range 20) 14982 | -2/Testing | Spotted Alpha 7 14988 | -2/Testing | Entered Access 14988 | -1/Access | Evolved 2 slots: Utility x2 15023 | -1/Access | Identified System Mapper 15041 | -1/Access | Found Prototype Device 15041 | -1/Access | Identified Exp. Thermal Shield 15379 | -1/Access | System corruption reached 10% 15421 | -1/Access | Core integrity fell below 50% 15434 | -1/Access | Spotted B-99 Colossus 15438 | -1/Access | Core integrity fell below 20% 15447 | -1/Access | Destroyed by Q003-z with Ragnarok Missile Launcher Last Messages --------------- [Achievement: Tailor-made] 15435_ U-05 Engineer builds a Wall. 15436_ System corrupted: Energy discharge (-19). 15437_ Terminal disabled. 15437_ Penetrated by Slug. 15437_ Slug penetrates Wall. 15437_ Penetrated by Slug. 15437_ Slug penetrates Wall. 15439_ ALERT: Hostiles spotted, dispatching reinforcements to Terminal A022. 15444_ Slammed into R-10 Processor. 15444_ Adv. Target Analyzer destroyed. 15444_ R-10 Processor destroyed. 15444_ S-43 Plague destroyed. 15445_ P-80 Master destroyed. 15445_ P-80 Master resets S-43 Plague, system corruption cleaned. 15446_ Slug penetrates Wall. 15446_ Penetrated by Slug. 15446_ Slug penetrates Wall. Map ----- +----------------------------------------------------+ | ????????????????????# " # # | | ????????????????????#############" # + | | ??????+?????????????# " ##### | | ??????# ????????????# # #???? | | ??????# ???????????# # #???? | | ???????# ??????????# # #???? | | ???????# ?????????# # #???? | | ???????# #????????# % / !=#???? | | ???????# ???????# # ??? | | ???????# ######## ## ###?? | | ?!* + = + #?H###### ##???? | | ???????# k ## #? #????? #????? | | ???????# ## #? ??????? #????? | | ???????## % ## #??????????#????? | | ????????# !! [##/############???????????????? | | ????????# !! p#??????????????????????????? | | ????????# !! p#??????????????????????????? | | ????????# p############# #????????????? | | ????????# ps! #????????????? | | ????????# B s=s ###?????????????????? | | ????????+ " =%s%* ##?????????????????? | | ????????# "T #?##+#####????????? | | ????????# """ # #????????? | | ????????# ########## #????????? | | ????????# ???????# * #????????? | | ????????##????????# @% +????????? | | ??????????????????# #????????? | | ??????????????????# # #????????? | | ??????????????????# # #????????? | | ??????????????????#Q #? #????????? | | ????????????????? Q #??########????????? | | ??????????????? h # #??????????????????? | | ?????????????? # #??????????????????? | | ????????????hh ?# #??????????????????? | | ??????????? ??# #??????????????????? | | ??????????" ???# #??????????????????? | | ??????????" ????# #??????????????????? | | ?????????? ?????#############??????????????????? | | ?????????? ?????????????????????????????????????? | | ?????????????????????????????????????????????????? | | ?????????????????????????????????????????????????? | | ?????????????????????????????????????????????????? | | ?????????????????????????????????????????????????? | | ?????????????????????????????????????????????????? | | ?????????????????????????????????????????????????? | | ?????????????????????????????????????????????????? | | ?????????????????????????????????????????????????? | | ?????????????????????????????????????????????????? | | ?????????????????????????????????????????????????? | | ?????????????????????????????????????????????????? | +----------------------------------------------------+ Best States ------------- Heat Dissipation 145 Coolant Potential 100 Energy Generation 59 Energy Capacity 1110 Matter Stores 530 Matter Capacity 550 Sight Range 20 Terrain Scan Range 14 Terrain Scan Density 10 ECM Strength 1 Jamming Range 16 Base Temperature (-) 200 Armor Coverage 1200 Resistance: TH 30 Weapon Cycling 15 Phase Shifting 15 Evasion (%) 78 Targeting Accuracy 16 Target Analysis 12 Core Analysis 9 Recoil Reduction 6 Energy Filtering 30 Kinecelleration 30 Offensive Hacking 20 Item Schematics ----------------- Imp. Assault Rifle | -9/Materials | Scanalyzed Assault Drone Bay | -4/Zhirov | Free Exp. Heat Sink | -4/Zhirov | Free Exp. Optical Array | -4/Zhirov | Free Imp. Arc Thrower | -4/Zhirov | Free Cld. Proton Cannon | -2/Testing | Archive Enh. Gamma Bomb Array | -2/Testing | Archive Adv. Variable Charge Gun | -2/Testing | Archive Robot Schematics ------------------ R-10 Processor | -2/Testing | Archive Fabricated ------------ Nothing Repaired ---------- Shield Generator | 33% | -8/Materials Studied --------- Arm. Wheel | -8/Materials | Hacked Adv. Treads | -8/Materials | Hacked Rocket Launcher | -8/Materials | Hacked Hvy. Assault Rifle | -8/Materials | Hacked Assault Rifle | -8/Materials | Hacked Lgt. Deuterium Engine | -8/Materials | Hacked Lgt. Treads | -8/Materials | Hacked Imp. Grenade Launcher | -8/Materials | Hacked Lgt. Antimatter Reactor | -2/Research | Hacked KE Penetrator | -2/Research | Hacked Alien Tech Used ----------------- Integrated Dissipator Transdimensional Reconstructor Achievements -------------- A Problem For Future Me DATA ERROR: Steam Global Achievement% DIY Cooler Deadly Precision Deductive Reasoning Fancy Inventory For Emergencies Only Ghost 'Em Heavy Suspicion Hydra I Have A Map? I Laugh At Your Crits Immobile And Lovin' It Item+ Jackpot Organ Harvest Overwhelming Spot Them First Tailor-made There's More Where That Came From Well Done Challenges ------------ None Game ------ Seed GrenadeVariableNullifier Manual? 0 Play Time 02:27:30 Cumulative 218.6 hours Start 2025.10.25 @ 15:27:14 End 2025.10.25 @ 18:01:30 Sessions 1 Manual Loads 0 Difficulty Rogue Special Mode None Game No. 178 Rogue 178 Adventurer 0 Explorer 0 Win Type - Total 6 Types 4/0/1/1/0/0/0/0/0/0 Lore% 81 Gallery% 71 Achievement% 41 Wizard Run 0 Options --------- Layout 1 ASCII 0 Keyboard 0 Movement Mouse Keybinds 0 Fullscreen 1 Font 24/Smallcaps Map View 50x35 Zoom Use 0% Tactical HUD 1 Map Filters NONE Filters NONE Steam 1 RUN: 59465644-1aa5-406d-a4a4-ac74ad00c85b